[Event "Titled Tuesday Blitz April 25 Early 2023"]
[White "Ferenc83"]
[Black "Andreikin, Dmitry"]
[BlackFideId "4158814"]
[WhiteElo "2585"]
[BlackElo "2736"]
[Result "0-1"]
[Round "04"]
[TimeControl "180+2"]
[Date "2023.04.25"]
[WhiteClock "0:00:08"]
[BlackClock "0:00:19"]

1. e4 {[%clk 0:03:00]}  c5 {[%clk 0:02:59]} 2. Nf3 {[%clk 0:02:59]}  e6 {[%clk 0:03:00]} 3. b3 {[%clk 0:02:57]}  b6 {[%clk 0:03:00]} 4. Bb2 {[%clk 0:02:56]}  Bb7 {[%clk 0:03:00]} 5. Qe2 {[%clk 0:02:56]}  Nc6 {[%clk 0:02:50]} 6. Na3 {[%clk 0:02:55]}  a6 {[%clk 0:02:50]} 7. Nc4 {[%clk 0:02:45]}  b5 {[%clk 0:02:50]} 8. Ne3 {[%clk 0:02:45]}  Nf6 {[%clk 0:02:46]} 9. e5 {[%clk 0:02:43]}  Nh5 {[%clk 0:02:46]} 10. g3 {[%clk 0:02:29]}  Nd4 {[%clk 0:02:42]} 11. Nxd4 {[%clk 0:02:21]}  cxd4 {[%clk 0:02:43]} 12. Bxd4 {[%clk 0:02:21]}  Bxh1 {[%clk 0:02:40]} 13. Qxh5 {[%clk 0:02:20]}  Be4 {[%clk 0:02:37]} 14. Qg4 {[%clk 0:02:18]}  Bg6 {[%clk 0:02:36]} 15. c4 {[%clk 0:02:12]}  Qa5 {[%clk 0:02:29]} 16. Qf3 {[%clk 0:01:59]}  Rb8 {[%clk 0:02:22]} 17. c5 {[%clk 0:01:48]}  Qb4 {[%clk 0:02:14]} 18. Bc3 {[%clk 0:01:17]}  Qxc5 {[%clk 0:02:14]} 19. h4 {[%clk 0:01:13]}  h5 {[%clk 0:02:13]} 20. Qf4 {[%clk 0:01:10]}  Be7 {[%clk 0:02:05]} 21. Be2 {[%clk 0:01:07]}  Rc8 {[%clk 0:02:03]} 22. b4 {[%clk 0:01:02]}  Qc7 {[%clk 0:01:59]} 23. Qd4 {[%clk 0:00:59]}  Qb7 {[%clk 0:01:53]} 24. a4 {[%clk 0:00:55]}  O-O {[%clk 0:01:46]} 25. axb5 {[%clk 0:00:54]}  axb5 {[%clk 0:01:47]} 26. Ra7 {[%clk 0:00:54]}  Qh1+ {[%clk 0:01:47]} 27. Bf1 {[%clk 0:00:55]}  Ra8 {[%clk 0:01:46]} 28. Qxd7 {[%clk 0:00:50]}  Rxa7 {[%clk 0:01:28]} 29. Qxa7 {[%clk 0:00:50]}  Bd8 {[%clk 0:01:03]} 30. Qa6 {[%clk 0:00:44]}  Bd3 {[%clk 0:01:00]} 31. Qd6 {[%clk 0:00:41]}  Bxf1 {[%clk 0:00:59]} 32. Nxf1 {[%clk 0:00:41]}  Qb7 {[%clk 0:00:51]} 33. Ne3 {[%clk 0:00:40]}  Bb6 {[%clk 0:00:47]} 34. Qd3 {[%clk 0:00:39]}  Bxe3 {[%clk 0:00:47]} 35. Qxe3 {[%clk 0:00:38]}  Qd5 {[%clk 0:00:41]} 36. Ke2 {[%clk 0:00:35]}  Rc8 {[%clk 0:00:40]} 37. f3 {[%clk 0:00:28]}  Qc4+ {[%clk 0:00:39]} 38. Kf2 {[%clk 0:00:27]}  Ra8 {[%clk 0:00:39]} 39. Qg5 {[%clk 0:00:21]}  Ra2 {[%clk 0:00:32]} 40. Qe3 {[%clk 0:00:14]}  Rc2 {[%clk 0:00:31]} 41. Qe2 {[%clk 0:00:12]}  Qd5 {[%clk 0:00:26]} 42. f4 {[%clk 0:00:09]}  Rc1 {[%clk 0:00:25]} 43. Qxh5 {[%clk 0:00:08]}  Rh1 {[%clk 0:00:21]} 44. Qf3 {[%clk 0:00:08]}  Rf1+ {[%clk 0:00:19]} 0-1


[Site "https://www.chess.com"]

[Event "Titled Tuesday Blitz April 25 Early 2023"]
[White "Grigoriants, Sergey"]
[Black "Hamitevici, Vladimir"]
[WhiteFideId "4130804"]
[BlackFideId "13902393"]
[WhiteElo "2502"]
[BlackElo "2401"]
[Result "1/2-1/2"]
[Round "04"]
[TimeControl "180+2"]
[Date "2023.04.25"]
[WhiteClock "0:00:08"]
[BlackClock "0:00:04"]

1. d4 {[%clk 0:02:54]}  Nf6 {[%clk 0:02:57]} 2. c4 {[%clk 0:02:53]}  e6 {[%clk 0:02:50]} 3. g3 {[%clk 0:02:49]}  c5 {[%clk 0:02:47]} 4. d5 {[%clk 0:02:47]}  exd5 {[%clk 0:02:46]} 5. cxd5 {[%clk 0:02:48]}  d6 {[%clk 0:02:45]} 6. Bg2 {[%clk 0:02:48]}  g6 {[%clk 0:02:45]} 7. Nc3 {[%clk 0:02:49]}  Bg7 {[%clk 0:02:45]} 8. Nf3 {[%clk 0:02:49]}  O-O {[%clk 0:02:45]} 9. O-O {[%clk 0:02:49]}  Re8 {[%clk 0:02:42]} 10. h3 {[%clk 0:02:48]}  a6 {[%clk 0:02:29]} 11. a4 {[%clk 0:02:47]}  Ne4 {[%clk 0:02:29]} 12. Nxe4 {[%clk 0:02:28]}  Rxe4 {[%clk 0:02:30]} 13. Nd2 {[%clk 0:02:29]}  Rb4 {[%clk 0:02:30]} 14. Qc2 {[%clk 0:02:23]}  Nd7 {[%clk 0:02:13]} 15. Ra3 {[%clk 0:02:22]}  Qf6 {[%clk 0:01:45]} 16. Ne4 {[%clk 0:01:34]}  Qe7 {[%clk 0:01:39]} 17. Re3 {[%clk 0:01:12]}  Qf8 {[%clk 0:01:37]} 18. b3 {[%clk 0:01:08]}  b5 {[%clk 0:01:32]} 19. Bd2 {[%clk 0:01:03]}  Rd4 {[%clk 0:01:28]} 20. Bc3 {[%clk 0:00:58]}  bxa4 {[%clk 0:01:27]} 21. bxa4 {[%clk 0:00:55]}  Bb7 {[%clk 0:00:59]} 22. Bxd4 {[%clk 0:00:40]}  cxd4 {[%clk 0:00:59]} 23. Ra3 {[%clk 0:00:33]}  Bxd5 {[%clk 0:00:56]} 24. Qc7 {[%clk 0:00:30]}  Rd8 {[%clk 0:00:35]} 25. Rc1 {[%clk 0:00:22]}  Bxe4 {[%clk 0:00:35]} 26. Bxe4 {[%clk 0:00:22]}  Nc5 {[%clk 0:00:36]} 27. Bd5 {[%clk 0:00:21]}  Rc8 {[%clk 0:00:33]} 28. Qa7 {[%clk 0:00:18]}  Re8 {[%clk 0:00:30]} 29. Rf3 {[%clk 0:00:18]}  Re7 {[%clk 0:00:27]} 30. Qb6 {[%clk 0:00:18]}  Be5 {[%clk 0:00:26]} 31. Rb1 {[%clk 0:00:17]}  Kg7 {[%clk 0:00:25]} 32. Qb8 {[%clk 0:00:15]}  Qxb8 {[%clk 0:00:21]} 33. Rxb8 {[%clk 0:00:16]}  Nxa4 {[%clk 0:00:20]} 34. Kf1 {[%clk 0:00:04]}  Nc5 {[%clk 0:00:20]} 35. Bc4 {[%clk 0:00:04]}  Ne4 {[%clk 0:00:16]} 36. Kg2 {[%clk 0:00:04]}  Nd2 {[%clk 0:00:16]} 37. Bd5 {[%clk 0:00:03]}  Nxf3 {[%clk 0:00:15]} 38. Kxf3 {[%clk 0:00:04]}  Ra7 {[%clk 0:00:15]} 39. Rb3 {[%clk 0:00:03]}  a5 {[%clk 0:00:15]} 40. Ra3 {[%clk 0:00:04]}  f5 {[%clk 0:00:16]} 41. g4 {[%clk 0:00:03]}  Kf6 {[%clk 0:00:15]} 42. Ra4 {[%clk 0:00:04]}  Kg5 {[%clk 0:00:15]} 43. Be6 {[%clk 0:00:03]}  Kf6 {[%clk 0:00:12]} 44. Bc4 {[%clk 0:00:03]}  fxg4+ {[%clk 0:00:11]} 45. Kxg4 {[%clk 0:00:03]}  Ke7 {[%clk 0:00:11]} 46. f4 {[%clk 0:00:03]}  Bf6 {[%clk 0:00:10]} 47. Bd3 {[%clk 0:00:04]}  Kd7 {[%clk 0:00:10]} 48. f5 {[%clk 0:00:04]}  g5 {[%clk 0:00:08]} 49. Kf3 {[%clk 0:00:03]}  d5 {[%clk 0:00:08]} 50. Kg4 {[%clk 0:00:03]}  Kd6 {[%clk 0:00:09]} 51. Kh5 {[%clk 0:00:04]}  Ke5 {[%clk 0:00:09]} 52. Kh6 {[%clk 0:00:04]}  Kf4 {[%clk 0:00:07]} 53. Kh5 {[%clk 0:00:03]}  Kg3 {[%clk 0:00:07]} 54. Ra3 {[%clk 0:00:03]}  Kf2 {[%clk 0:00:07]} 55. Kg4 {[%clk 0:00:03]}  Be7 {[%clk 0:00:07]} 56. Ra4 {[%clk 0:00:04]}  Bf6 {[%clk 0:00:07]} 57. Ra2 {[%clk 0:00:03]}  Ke3 {[%clk 0:00:07]} 58. Ra4 {[%clk 0:00:03]}  Kd2 {[%clk 0:00:07]} 59. Kh5 {[%clk 0:00:03]}  Kc3 {[%clk 0:00:07]} 60. Kh6 {[%clk 0:00:03]}  Kb3 {[%clk 0:00:07]} 61. Bb5 {[%clk 0:00:03]}  Kc3 {[%clk 0:00:05]} 62. Bd3 {[%clk 0:00:03]}  Kd2 {[%clk 0:00:05]} 63. Bb5 {[%clk 0:00:03]}  Ke3 {[%clk 0:00:05]} 64. Ra3+ {[%clk 0:00:04]}  Kf4 {[%clk 0:00:05]} 65. Bd3 {[%clk 0:00:04]}  Ke5 {[%clk 0:00:05]} 66. Ra4 {[%clk 0:00:05]}  Kf4 {[%clk 0:00:05]} 67. Kh5 {[%clk 0:00:05]}  Kg3 {[%clk 0:00:05]} 68. Ra3 {[%clk 0:00:06]}  Kh2 {[%clk 0:00:06]} 69. Bb5 {[%clk 0:00:06]}  Kg2 {[%clk 0:00:05]} 70. Kg4 {[%clk 0:00:06]}  Kf2 {[%clk 0:00:05]} 71. Bd3 {[%clk 0:00:07]}  Bd8 {[%clk 0:00:04]} 72. Bb5 {[%clk 0:00:07]}  Rc7 {[%clk 0:00:04]} 73. Rxa5 {[%clk 0:00:06]}  Rc5 {[%clk 0:00:04]} 74. Ra8 {[%clk 0:00:07]}  Rxb5 {[%clk 0:00:04]} 75. Rxd8 {[%clk 0:00:07]}  Kxe2 {[%clk 0:00:04]} 76. f6 {[%clk 0:00:08]}  Rb7 {[%clk 0:00:04]} 77. Rxd5 {[%clk 0:00:07]}  d3 {[%clk 0:00:04]} 78. Re5+ {[%clk 0:00:08]}  Kf2 {[%clk 0:00:04]} 79. Rd5 {[%clk 0:00:07]}  Ke2 {[%clk 0:00:04]} 80. Re5+ {[%clk 0:00:08]}  Kf2 {[%clk 0:00:04]} 81. Rd5 {[%clk 0:00:08]}  Ke2 {[%clk 0:00:04]} 1/2-1/2


[Site "https://www.chess.com"]

[Event "Titled Tuesday Blitz April 25 Early 2023"]
[White "Panesso Rivera, Henry"]
[Black "Corrales Jimenez, Fidel"]
[WhiteFideId "4402707"]
[BlackFideId "3506690"]
[WhiteElo "2345"]
[BlackElo "2541"]
[Result "0-1"]
[Round "04"]
[TimeControl "180+2"]
[Date "2023.04.25"]
[WhiteClock "0:01:25"]
[BlackClock "0:01:06"]

1. Nf3 {[%clk 0:03:00]}  c5 {[%clk 0:02:56]} 2. c4 {[%clk 0:02:56]}  Nc6 {[%clk 0:02:52]} 3. e3 {[%clk 0:02:56]}  Nf6 {[%clk 0:02:48]} 4. Nc3 {[%clk 0:02:54]}  d5 {[%clk 0:02:47]} 5. cxd5 {[%clk 0:02:54]}  Nxd5 {[%clk 0:02:48]} 6. d4 {[%clk 0:02:55]}  cxd4 {[%clk 0:02:48]} 7. exd4 {[%clk 0:02:55]}  e6 {[%clk 0:02:48]} 8. Bc4 {[%clk 0:02:53]}  Be7 {[%clk 0:02:48]} 9. O-O {[%clk 0:02:53]}  O-O {[%clk 0:02:48]} 10. a3 {[%clk 0:02:51]}  Nxc3 {[%clk 0:02:47]} 11. bxc3 {[%clk 0:02:51]}  b6 {[%clk 0:02:48]} 12. Re1 {[%clk 0:02:51]}  Bb7 {[%clk 0:02:39]} 13. Re3 {[%clk 0:02:43]}  Rc8 {[%clk 0:02:07]} 14. Bd3 {[%clk 0:02:41]}  g6 {[%clk 0:02:00]} 15. h4 {[%clk 0:02:38]}  Na5 {[%clk 0:01:57]} 16. h5 {[%clk 0:02:35]}  Rxc3 {[%clk 0:01:53]} 17. hxg6 {[%clk 0:02:34]}  hxg6 {[%clk 0:01:52]} 18. Bb2 {[%clk 0:02:23]}  Rb3 {[%clk 0:01:51]} 19. Qe2 {[%clk 0:02:18]}  Bg5 {[%clk 0:01:48]} 20. Rxe6 {[%clk 0:02:07]}  Bxf3 {[%clk 0:01:43]} 21. Rxg6+ {[%clk 0:02:03]}  fxg6 {[%clk 0:01:40]} 22. Qe6+ {[%clk 0:02:03]}  Rf7 {[%clk 0:01:40]} 23. Bxg6 {[%clk 0:02:02]}  Qf6 {[%clk 0:01:25]} 24. Bxf7+ {[%clk 0:01:46]}  Qxf7 {[%clk 0:01:26]} 25. Qe5 {[%clk 0:01:47]}  Bf6 {[%clk 0:01:17]} 26. Qb8+ {[%clk 0:01:47]}  Qf8 {[%clk 0:01:16]} 27. Qf4 {[%clk 0:01:36]}  Qg7 {[%clk 0:01:11]} 28. Qb8+ {[%clk 0:01:34]}  Kf7 {[%clk 0:01:11]} 29. Qc7+ {[%clk 0:01:29]}  Be7 {[%clk 0:01:11]} 30. Qf4+ {[%clk 0:01:28]}  Kg8 {[%clk 0:01:11]} 31. g3 {[%clk 0:01:25]}  Qh7 {[%clk 0:01:06]} 0-1


[Site "https://www.chess.com"]

[Event "Titled Tuesday Blitz April 25 Early 2023"]
[White "Osinenko, Anton"]
[Black "Lenderman, Aleksandr"]
[WhiteFideId "4158970"]
[BlackFideId "2021285"]
[WhiteElo "2294"]
[BlackElo "2607"]
[Result "0-1"]
[Round "04"]
[TimeControl "180+2"]
[Date "2023.04.25"]
[WhiteClock "0:00:25"]
[BlackClock "0:01:36"]

1. e4 {[%clk 0:02:59]}  d5 {[%clk 0:02:59]} 2. exd5 {[%clk 0:02:56]}  Nf6 {[%clk 0:02:57]} 3. Nc3 {[%clk 0:02:55]}  Nxd5 {[%clk 0:02:56]} 4. Bc4 {[%clk 0:02:56]}  Nb6 {[%clk 0:02:54]} 5. Bb3 {[%clk 0:02:56]}  Nc6 {[%clk 0:02:54]} 6. Nge2 {[%clk 0:02:54]}  Bf5 {[%clk 0:02:53]} 7. d4 {[%clk 0:02:51]}  e6 {[%clk 0:02:54]} 8. O-O {[%clk 0:02:50]}  Be7 {[%clk 0:02:53]} 9. Be3 {[%clk 0:02:43]}  O-O {[%clk 0:02:53]} 10. Ng3 {[%clk 0:02:44]}  Bg6 {[%clk 0:02:53]} 11. Qd2 {[%clk 0:02:42]}  Na5 {[%clk 0:02:52]} 12. Qe2 {[%clk 0:02:38]}  Nxb3 {[%clk 0:02:52]} 13. axb3 {[%clk 0:02:39]}  Nd5 {[%clk 0:02:53]} 14. Nxd5 {[%clk 0:02:29]}  Qxd5 {[%clk 0:02:53]} 15. c4 {[%clk 0:02:27]}  Qd7 {[%clk 0:02:52]} 16. Rfd1 {[%clk 0:02:20]}  Rfd8 {[%clk 0:02:51]} 17. d5 {[%clk 0:02:14]}  a6 {[%clk 0:02:50]} 18. Bf4 {[%clk 0:02:10]}  Bf6 {[%clk 0:02:39]} 19. dxe6 {[%clk 0:02:04]}  Qxe6 {[%clk 0:02:40]} 20. Qxe6 {[%clk 0:02:05]}  fxe6 {[%clk 0:02:39]} 21. Bxc7 {[%clk 0:02:05]}  Rxd1+ {[%clk 0:02:30]} 22. Rxd1 {[%clk 0:02:06]}  Bxb2 {[%clk 0:02:30]} 23. Ne2 {[%clk 0:01:50]}  Bf6 {[%clk 0:02:25]} 24. Rd2 {[%clk 0:01:39]}  Rc8 {[%clk 0:02:16]} 25. Ba5 {[%clk 0:01:38]}  b5 {[%clk 0:02:14]} 26. cxb5 {[%clk 0:01:36]}  axb5 {[%clk 0:02:15]} 27. f3 {[%clk 0:01:30]}  Rc2 {[%clk 0:02:15]} 28. Nf4 {[%clk 0:01:19]}  Rxd2 {[%clk 0:02:09]} 29. Bxd2 {[%clk 0:01:20]}  Bc2 {[%clk 0:02:09]} 30. b4 {[%clk 0:01:19]}  Bd4+ {[%clk 0:02:05]} 31. Kf1 {[%clk 0:01:16]}  Bb3 {[%clk 0:02:05]} 32. Ne2 {[%clk 0:01:04]}  Bc4 {[%clk 0:02:06]} 33. Ke1 {[%clk 0:01:04]}  Be5 {[%clk 0:02:05]} 34. f4 {[%clk 0:01:02]}  Bd6 {[%clk 0:02:04]} 35. Kf2 {[%clk 0:00:59]}  Kf7 {[%clk 0:01:59]} 36. Ng3 {[%clk 0:01:00]}  Kg6 {[%clk 0:01:55]} 37. Ke3 {[%clk 0:00:59]}  Bc7 {[%clk 0:01:55]} 38. Bc3 {[%clk 0:00:58]}  h5 {[%clk 0:01:53]} 39. Ne4 {[%clk 0:00:53]}  Kf5 {[%clk 0:01:50]} 40. g3 {[%clk 0:00:48]}  g6 {[%clk 0:01:43]} 41. Bd4 {[%clk 0:00:48]}  Bd5 {[%clk 0:01:38]} 42. Ng5 {[%clk 0:00:45]}  e5 {[%clk 0:01:37]} 43. Nh3 {[%clk 0:00:26]}  exd4+ {[%clk 0:01:35]} 44. Kxd4 {[%clk 0:00:26]}  Bc4 {[%clk 0:01:36]} 45. Kc5 {[%clk 0:00:25]}  Bd8 {[%clk 0:01:36]} 0-1


[Site "https://www.chess.com"]

[Event "Titled Tuesday Blitz April 25 Early 2023"]
[White "Isajevsky, Anton"]
[Black "Azarov, Sergei"]
[WhiteFideId "4142500"]
[BlackFideId "13501470"]
[WhiteElo "2510"]
[BlackElo "2475"]
[Result "0-1"]
[Round "04"]
[TimeControl "180+2"]
[Date "2023.04.25"]
[WhiteClock "0:00:08"]
[BlackClock "0:00:38"]

1. Nf3 {[%clk 0:03:00]}  Nf6 {[%clk 0:02:58]} 2. c4 {[%clk 0:02:59]}  e6 {[%clk 0:02:58]} 3. Nc3 {[%clk 0:02:59]}  Bb4 {[%clk 0:02:58]} 4. Qc2 {[%clk 0:02:59]}  O-O {[%clk 0:02:53]} 5. a3 {[%clk 0:02:59]}  Bxc3 {[%clk 0:02:52]} 6. Qxc3 {[%clk 0:02:59]}  d6 {[%clk 0:02:53]} 7. b4 {[%clk 0:02:59]}  e5 {[%clk 0:02:52]} 8. Bb2 {[%clk 0:02:59]}  c5 {[%clk 0:02:48]} 9. d3 {[%clk 0:02:55]}  b6 {[%clk 0:02:38]} 10. e3 {[%clk 0:02:51]}  Nc6 {[%clk 0:02:38]} 11. Be2 {[%clk 0:02:51]}  Re8 {[%clk 0:02:37]} 12. O-O {[%clk 0:02:51]}  Bg4 {[%clk 0:02:37]} 13. h3 {[%clk 0:02:35]}  Bh5 {[%clk 0:02:36]} 14. Rfe1 {[%clk 0:02:32]}  Qc7 {[%clk 0:02:33]} 15. g4 {[%clk 0:02:22]}  Bg6 {[%clk 0:02:30]} 16. Nh4 {[%clk 0:02:22]}  d5 {[%clk 0:02:09]} 17. cxd5 {[%clk 0:02:04]}  Nxd5 {[%clk 0:02:08]} 18. Qc4 {[%clk 0:02:04]}  Rad8 {[%clk 0:01:53]} 19. Rac1 {[%clk 0:02:04]}  Qe7 {[%clk 0:01:45]} 20. Nxg6 {[%clk 0:02:03]}  hxg6 {[%clk 0:01:45]} 21. bxc5 {[%clk 0:02:03]}  Na5 {[%clk 0:01:33]} 22. Qa4 {[%clk 0:01:55]}  Qh4 {[%clk 0:01:30]} 23. Bf1 {[%clk 0:01:38]}  f5 {[%clk 0:01:29]} 24. cxb6 {[%clk 0:01:08]}  axb6 {[%clk 0:01:26]} 25. Bg2 {[%clk 0:00:44]}  Nf6 {[%clk 0:01:24]} 26. Qb5 {[%clk 0:00:08]}  fxg4 {[%clk 0:01:20]} 27. Bxe5 {[%clk 0:00:09]}  gxh3 {[%clk 0:01:14]} 28. Bg3 {[%clk 0:00:09]}  Qh6 {[%clk 0:01:06]} 29. Bf3 {[%clk 0:00:08]}  Rf8 {[%clk 0:00:47]} 30. Qxb6 {[%clk 0:00:08]}  Nh5 {[%clk 0:00:38]} 31. Bxh5 {[%clk 0:00:08]}  Qxh5 {[%clk 0:00:38]} 0-1


[Site "https://www.chess.com"]

[Event "Titled Tuesday Blitz April 25 Early 2023"]
[White "Shomoev, Anton"]
[Black "Odegov, Artem"]
[WhiteFideId "4135148"]
[BlackFideId "34183644"]
[WhiteElo "2451"]
[BlackElo "2300"]
[Result "1/2-1/2"]
[Round "04"]
[TimeControl "180+2"]
[Date "2023.04.25"]
[WhiteClock "0:01:04"]
[BlackClock "0:00:21"]

1. d4 {[%clk 0:03:00]}  d5 {[%clk 0:02:58]} 2. c4 {[%clk 0:03:01]}  e6 {[%clk 0:02:59]} 3. Nc3 {[%clk 0:03:01]}  c5 {[%clk 0:02:59]} 4. cxd5 {[%clk 0:03:01]}  exd5 {[%clk 0:03:00]} 5. Nf3 {[%clk 0:03:00]}  Nc6 {[%clk 0:03:00]} 6. dxc5 {[%clk 0:03:00]}  d4 {[%clk 0:03:01]} 7. Ne4 {[%clk 0:02:59]}  Nf6 {[%clk 0:03:00]} 8. Nd6+ {[%clk 0:02:56]}  Bxd6 {[%clk 0:03:00]} 9. cxd6 {[%clk 0:02:57]}  Qxd6 {[%clk 0:03:00]} 10. e3 {[%clk 0:02:57]}  Qb4+ {[%clk 0:02:47]} 11. Bd2 {[%clk 0:02:53]}  Qxb2 {[%clk 0:02:46]} 12. exd4 {[%clk 0:02:42]}  O-O {[%clk 0:02:39]} 13. Be2 {[%clk 0:02:42]}  Nxd4 {[%clk 0:02:29]} 14. Nxd4 {[%clk 0:02:39]}  Qxd4 {[%clk 0:02:29]} 15. O-O {[%clk 0:02:39]}  Be6 {[%clk 0:02:27]} 16. Be3 {[%clk 0:02:31]}  Qxd1 {[%clk 0:02:26]} 17. Rfxd1 {[%clk 0:02:32]}  b6 {[%clk 0:02:25]} 18. a4 {[%clk 0:02:31]}  Rad8 {[%clk 0:02:16]} 19. Rxd8 {[%clk 0:02:30]}  Rxd8 {[%clk 0:02:14]} 20. a5 {[%clk 0:02:30]}  bxa5 {[%clk 0:02:14]} 21. Rxa5 {[%clk 0:02:26]}  Nd5 {[%clk 0:01:58]} 22. Bxa7 {[%clk 0:02:24]}  Nc3 {[%clk 0:01:58]} 23. Bf3 {[%clk 0:02:22]}  Bd5 {[%clk 0:01:47]} 24. Bb6 {[%clk 0:02:22]}  Re8 {[%clk 0:01:24]} 25. Be3 {[%clk 0:01:54]}  Bxf3 {[%clk 0:00:46]} 26. gxf3 {[%clk 0:01:55]}  Rc8 {[%clk 0:00:47]} 27. Kf1 {[%clk 0:01:50]}  h6 {[%clk 0:00:45]} 28. Bd2 {[%clk 0:01:37]}  Nb1 {[%clk 0:00:22]} 29. Be1 {[%clk 0:01:35]}  Rc2 {[%clk 0:00:22]} 30. Ra1 {[%clk 0:01:10]}  Nd2+ {[%clk 0:00:21]} 31. Bxd2 {[%clk 0:01:04]}  Rxd2 {[%clk 0:00:21]} 1/2-1/2


[Site "https://www.chess.com"]

[Event "Titled Tuesday Blitz April 25 Early 2023"]
[White "Moksh Amit Doshi"]
[Black "Molina, Roberto Junio Brito"]
[WhiteFideId "25064967"]
[BlackFideId "2109450"]
[WhiteElo "2297"]
[BlackElo "2376"]
[Result "0-1"]
[Round "04"]
[TimeControl "180+2"]
[Date "2023.04.25"]
[WhiteClock "0:00:11"]
[BlackClock "0:00:26"]

1. d4 {[%clk 0:02:52]}  d5 {[%clk 0:02:59]} 2. c4 {[%clk 0:02:50]}  c6 {[%clk 0:02:58]} 3. Nf3 {[%clk 0:02:50]}  Nf6 {[%clk 0:02:57]} 4. cxd5 {[%clk 0:02:45]}  cxd5 {[%clk 0:02:57]} 5. Nc3 {[%clk 0:02:46]}  Qb6 {[%clk 0:02:55]} 6. Bf4 {[%clk 0:02:39]}  Qxb2 {[%clk 0:02:55]} 7. Rc1 {[%clk 0:02:32]}  Nc6 {[%clk 0:02:46]} 8. e3 {[%clk 0:02:30]}  a6 {[%clk 0:02:42]} 9. Bd3 {[%clk 0:02:23]}  Qa3 {[%clk 0:02:27]} 10. O-O {[%clk 0:02:23]}  e6 {[%clk 0:02:25]} 11. Ne5 {[%clk 0:02:17]}  Nxe5 {[%clk 0:02:19]} 12. Bxe5 {[%clk 0:02:18]}  Bd7 {[%clk 0:02:17]} 13. Nb1 {[%clk 0:01:27]}  Qxa2 {[%clk 0:02:04]} 14. Rc7 {[%clk 0:01:26]}  Qb2 {[%clk 0:01:37]} 15. Nd2 {[%clk 0:01:19]}  Rc8 {[%clk 0:01:28]} 16. Rxc8+ {[%clk 0:01:11]}  Bxc8 {[%clk 0:01:29]} 17. Qe2 {[%clk 0:01:11]}  Bb4 {[%clk 0:01:08]} 18. Rd1 {[%clk 0:00:48]}  Bd7 {[%clk 0:00:59]} 19. h3 {[%clk 0:00:18]}  Ba4 {[%clk 0:00:43]} 20. Bxf6 {[%clk 0:00:11]}  gxf6 {[%clk 0:00:26]} 0-1


[Site "https://www.chess.com"]

[Event "Titled Tuesday Blitz April 25 Early 2023"]
[White "Vakhlamov, Igor L."]
[Black "Cori T., Deysi"]
[WhiteFideId "24126748"]
[BlackFideId "3801934"]
[WhiteElo "2400"]
[BlackElo "2292"]
[Result "1-0"]
[Round "04"]
[TimeControl "180+2"]
[Date "2023.04.25"]
[WhiteClock "0:00:16"]
[BlackClock "0:00:11"]

1. e4 {[%clk 0:03:00]}  g6 {[%clk 0:02:57]} 2. d4 {[%clk 0:03:00]}  Bg7 {[%clk 0:02:57]} 3. Nf3 {[%clk 0:03:00]}  c6 {[%clk 0:02:57]} 4. Nc3 {[%clk 0:02:58]}  d5 {[%clk 0:02:56]} 5. Bd3 {[%clk 0:02:58]}  Bg4 {[%clk 0:02:54]} 6. Be3 {[%clk 0:02:56]}  dxe4 {[%clk 0:02:50]} 7. Nxe4 {[%clk 0:02:54]}  Nd7 {[%clk 0:02:44]} 8. O-O {[%clk 0:02:52]}  Ngf6 {[%clk 0:02:44]} 9. h3 {[%clk 0:02:37]}  Bxf3 {[%clk 0:02:43]} 10. Qxf3 {[%clk 0:02:38]}  O-O {[%clk 0:02:43]} 11. Rad1 {[%clk 0:02:31]}  Qa5 {[%clk 0:02:41]} 12. a3 {[%clk 0:02:30]}  Rad8 {[%clk 0:02:38]} 13. Rfe1 {[%clk 0:02:29]}  Nxe4 {[%clk 0:02:19]} 14. Qxe4 {[%clk 0:02:20]}  Rfe8 {[%clk 0:02:15]} 15. c3 {[%clk 0:02:20]}  Qd5 {[%clk 0:02:10]} 16. Qh4 {[%clk 0:02:10]}  Qb3 {[%clk 0:02:06]} 17. Rd2 {[%clk 0:02:05]}  e5 {[%clk 0:02:06]} 18. Bc2 {[%clk 0:01:58]}  Qc4 {[%clk 0:02:03]} 19. Bd1 {[%clk 0:01:52]}  exd4 {[%clk 0:01:57]} 20. cxd4 {[%clk 0:01:50]}  Nb6 {[%clk 0:01:51]} 21. Be2 {[%clk 0:01:48]}  Qa4 {[%clk 0:01:51]} 22. Red1 {[%clk 0:01:38]}  Nd5 {[%clk 0:01:45]} 23. Bg5 {[%clk 0:01:32]}  f6 {[%clk 0:01:45]} 24. Be3 {[%clk 0:01:18]}  Nxe3 {[%clk 0:01:42]} 25. fxe3 {[%clk 0:01:19]}  Rxe3 {[%clk 0:01:42]} 26. Bf3 {[%clk 0:01:12]}  Rde8 {[%clk 0:01:32]} 27. Qf2 {[%clk 0:01:08]}  Bf8 {[%clk 0:01:25]} 28. d5 {[%clk 0:01:08]}  Bc5 {[%clk 0:01:24]} 29. Kh1 {[%clk 0:00:59]}  Qf4 {[%clk 0:00:58]} 30. dxc6 {[%clk 0:00:23]}  Re1+ {[%clk 0:00:19]} 31. Rxe1 {[%clk 0:00:20]}  Bxf2 {[%clk 0:00:19]} 32. Rxe8+ {[%clk 0:00:20]}  Kf7 {[%clk 0:00:19]} 33. Rxf2 {[%clk 0:00:13]}  Kxe8 {[%clk 0:00:14]} 34. cxb7 {[%clk 0:00:13]}  Qc1+ {[%clk 0:00:14]} 35. Kh2 {[%clk 0:00:13]}  Qc7+ {[%clk 0:00:15]} 36. g3 {[%clk 0:00:13]}  Qb6 {[%clk 0:00:12]} 37. Rc2 {[%clk 0:00:11]}  Ke7 {[%clk 0:00:11]} 38. Rc8 {[%clk 0:00:11]}  Qxb2+ {[%clk 0:00:11]} 39. Bg2 {[%clk 0:00:12]}  Kd6 {[%clk 0:00:08]} 40. b8=Q+ {[%clk 0:00:12]}  Qxb8 {[%clk 0:00:08]} 41. Rxb8 {[%clk 0:00:13]}  Ke5 {[%clk 0:00:08]} 42. Rh8 {[%clk 0:00:14]}  h5 {[%clk 0:00:08]} 43. Rh7 {[%clk 0:00:15]}  a5 {[%clk 0:00:08]} 44. Ra7 {[%clk 0:00:16]}  Kd4 {[%clk 0:00:08]} 45. Rxa5 {[%clk 0:00:16]}  Ke3 {[%clk 0:00:09]} 46. Ra6 {[%clk 0:00:16]}  g5 {[%clk 0:00:09]} 47. Rxf6 {[%clk 0:00:15]}  h4 {[%clk 0:00:10]} 48. gxh4 {[%clk 0:00:15]}  gxh4 {[%clk 0:00:11]} 49. Rg6 {[%clk 0:00:16]} 1-0


[Site "https://www.chess.com"]